fUSD/lending_fUSD_20241023
["ID","MTS","AMOUNT","RATE_DAILY","PERIOD"]
[340711432,1729697431987,-400.0,0.0004914,2]
[340711433,1729697431996,-163.0133,0.00049496,2]
[340711434,1729697432005,-281.92,0.00049527,2]
[340711435,1729697432015,-250.0,0.00049527,120]
[340711436,1729697432024,-170.679,0.00049641,87]
[340711437,1729697432033,-809.464,0.00049641,87]
[340711438,1729697432042,-184.64506,0.00049694,120]
[340711439,1729697432052,-615.06667052,0.00049694,120]
[340711440,1729697432061,-500.0,0.00049695,120]
[340711441,1729697432071,-500.0,0.00049695,120]
[340711442,1729697432081,-500.0,0.00049695,120]
[340711443,1729697432090,-500.0,0.00049695,120]
[340711444,1729697432100,-500.0,0.00049695,120]
[340711446,1729697432110,-500.0,0.00049695,120]
[340711448,1729697432121,-500.0,0.00049695,120]
[340711450,1729697432131,-500.0,0.00049695,120]
[340711452,1729697432140,-500.0,0.00049695,120]
[340711454,1729697432150,-821.85,0.00049695,120]
[340711456,1729697432161,-500.0,0.00049695,120]
[340711458,1729697432170,-500.0,0.00049695,120]
[340711460,1729697432178,-671.76926909,0.000498,30]
[340711461,1729697432189,-178.62,0.00049821,120]
[340711463,1729697432198,-996.24,0.000499,119]
[340711465,1729697432207,-500.0,0.000499,120]
[340711466,1729697432216,-150.0,0.000499,120]
[340711468,1729697432227,-600.0,0.00049912,120]
[340711470,1729697432237,-500.0,0.00049969,120]
[340711472,1729697432247,-500.0,0.00049969,120]
[340711473,1729697432256,-500.0,0.00049969,120]
[340711474,1729697432265,-500.0,0.00049969,120]
[340711475,1729697432274,-500.0,0.00049969,120]
[340711476,1729697432284,-500.0,0.00049969,120]
[340711477,1729697432293,-500.0,0.00049969,120]
[340711478,1729697432303,-500.0,0.00049969,120]
[340711479,1729697432312,-500.0,0.00049969,120]
[340711480,1729697432321,-821.85,0.00049969,120]
[340711481,1729697432331,-500.0,0.00049969,120]
[340711482,1729697432340,-155.2,0.00049972,120]
[340711483,1729697432349,-9054.936,0.00049996,30]
[340711484,1729697432359,-5274.0,0.0005,120]
[340711485,1729697432368,-497.43180039,0.0005,120]
[340711486,1729697432377,-479.27347996,0.0005,120]
[340711487,1729697432386,-1057.30435082,0.0005,32]
[340711488,1729697432395,-349.72367887,0.0005,30]
[340711489,1729697432404,-500.0,0.00050243,120]
[340711490,1729697432414,-500.0,0.00050243,120]
[340711491,1729697432423,-500.0,0.00050243,120]
[340711492,1729697432435,-500.0,0.00050243,120]
[340711493,1729697432445,-500.0,0.00050243,120]
[340711494,1729697432454,-500.0,0.00050243,120]
[340711495,1729697432463,-500.0,0.00050243,120]
[340711496,1729697432472,-500.0,0.00050243,120]
[340711497,1729697432482,-500.0,0.00050243,120]
[340711498,1729697432491,-821.85,0.00050243,120]
[340711499,1729697432500,-500.0,0.00050243,120]
[340711500,1729697432508,-253.87,0.00050288,2]
[340711501,1729697432518,-262.0627,0.00050416,2]
[340711502,1729697432527,-500.0,0.00050517,120]
[340711503,1729697432536,-500.0,0.00050517,120]
[340711504,1729697432545,-500.0,0.00050517,120]
[340711505,1729697432555,-500.0,0.00050517,120]
[340711506,1729697432564,-500.0,0.00050517,120]
[340711507,1729697432573,-500.0,0.00050517,120]
[340711508,1729697432583,-500.0,0.00050517,120]
[340711509,1729697432594,-500.0,0.00050517,120]
[340711510,1729697432605,-500.0,0.00050517,120]
[340711511,1729697432615,-821.85,0.00050517,120]
[340711512,1729697432624,-163.17137474,0.00050517,120]
[340711513,1729697432735,-336.82862526,0.00050517,120]
[340711514,1729697432748,-513.887,0.00050691,120]
[340711515,1729697432761,-69.21390141,0.00050712,120]
[340711516,1729697432776,-81.78609859,0.00050712,120]
[340711517,1729697432785,-500.0,0.00050791,120]
[340711518,1729697432795,-500.0,0.00050791,120]
[340711519,1729697432804,-632.45067867,0.00050791,120]
[340711520,1729697432813,-500.0,0.00050791,120]
[340711521,1729697432822,-500.0,0.00050791,120]
[340711522,1729697432831,-500.0,0.00050791,120]
[340711523,1729697432840,-500.0,0.00050791,120]
[340711524,1729697432849,-500.0,0.00050791,120]
[340711525,1729697432859,-520.07588902,0.00050791,120]
[340711526,1729697432868,-821.85,0.00050791,120]
[340711527,1729697432877,-500.0,0.00050791,120]
[340711528,1729697432890,-327.57220465,0.0005086,19]
[340711529,1729697432899,-573.9461,0.00050964,2]
[340711530,1729697432908,-500.0,0.00051065,120]
[340711531,1729697432917,-500.0,0.00051065,120]
[340711532,1729697432927,-500.0,0.00051065,120]
[340711533,1729697432936,-500.0,0.00051065,120]
[340711534,1729697432945,-500.0,0.00051065,120]
[340711535,1729697432955,-500.0,0.00051065,120]
[340711536,1729697432964,-500.0,0.00051065,120]
[340711537,1729697432976,-821.85,0.00051065,120]
[340711538,1729697432985,-500.0,0.00051065,120]
[340711539,1729697432994,-996.24,0.0005122,120]
[340711540,1729697433004,-500.0,0.00051337,120]
[340711541,1729697433013,-500.0,0.00051337,120]
[340711542,1729697433022,-500.0,0.00051337,120]
[340711543,1729697433032,-500.0,0.00051339,120]
[340711544,1729697433041,-500.0,0.00051339,120]
[340711545,1729697433050,-500.0,0.00051339,120]
[340711546,1729697433059,-500.0,0.00051339,120]
[340711547,1729697433068,-500.0,0.00051339,120]
[340711548,1729697433078,-500.0,0.00051339,120]
[340711549,1729697433087,-500.0,0.00051339,120]
[340711550,1729697433097,-821.85,0.00051339,120]
[340711551,1729697433107,-500.0,0.00051339,120]
[340711552,1729697433116,-500.0,0.00051611,120]
[340711553,1729697433125,-500.0,0.00051611,120]
[340711554,1729697433135,-500.0,0.00051611,120]
[340711555,1729697433144,-354.03941146,0.00051613,120]
[340711556,1729697433154,-406.32936776,0.00051613,120]
[340711557,1729697433163,-304.59282969,0.00051613,120]
[340711558,1729697433172,-500.0,0.00051613,120]
[340711559,1729697433182,-500.0,0.00051613,120]
[340711560,1729697433191,-500.0,0.00051613,120]
[340711561,1729697433200,-290.43187059,0.00051613,120]
[340711562,1729697433210,-821.85,0.00051613,120]
[340711563,1729697433220,-612.37563753,0.00051613,120]
[340711564,1729697433232,-500.0,0.00051714,13]
[340711565,1729697433241,-167.0,0.00051714,13]
[340711566,1729697433250,-632.32149325,0.00051794,120]
[340711567,1729697433261,-500.0,0.00051885,120]
[340711568,1729697433270,-500.0,0.00051885,120]
[340711569,1729697433280,-500.0,0.00051885,120]
[340711570,1729697433290,-210.0,0.00051886,120]
[340711571,1729697433300,-500.0,0.00051886,120]
[340711572,1729697433309,-500.0,0.00051886,120]
[340711573,1729697433319,-500.0,0.00051886,120]
[340711574,1729697433329,-500.0,0.00051886,120]
[340711575,1729697433338,-500.0,0.00051886,120]
[340711576,1729697433348,-500.0,0.00051886,120]
[340711577,1729697433357,-500.0,0.00051886,120]
[340711578,1729697433366,-1086.86,0.00051886,120]
[340711579,1729697433376,-151.0,0.00051887,120]
[340711580,1729697433385,-500.0,0.00051887,120]
[340711581,1729697433394,-184.06717054,0.00051887,120]
[340711582,1729697433404,-500.0,0.00051887,120]
[340711583,1729697433414,-821.85,0.00051887,120]
[340711584,1729697433423,-695.52625531,0.000519,31]
[340711585,1729697433433,-4518.35444475,0.0005198,120]
[340711586,1729697433442,-1091.56,0.00052054,30]
[340711587,1729697433452,-500.0,0.00052054,120]
[340711588,1729697433462,-500.0,0.00052054,120]
[340711589,1729697433472,-500.0,0.00052054,120]
[340711590,1729697433483,-624.6112837,0.00052054,120]
[340711591,1729697433493,-500.0,0.00052054,120]
[340711592,1729697433503,-500.0,0.00052054,120]
[340711593,1729697433513,-500.0,0.00052054,120]
[340711594,1729697433523,-314.44498483,0.00052054,120]
[340711595,1729697433532,-500.0,0.00052054,120]
[340711596,1729697433542,-500.0,0.00052054,120]
[340711597,1729697433552,-773.6,0.00052054,120]
[340711598,1729697433561,-500.0,0.00052054,120]
[340711599,1729697433571,-500.0,0.00052054,120]
[340711600,1729697433580,-703.31,0.00052054,120]
[340711601,1729697433590,-500.0,0.00052054,120]
[340711602,1729697433599,-500.0,0.00052054,120]
[340711603,1729697433609,-500.0,0.00052054,120]
[340711604,1729697433618,-500.0,0.00052054,120]
[340711605,1729697433627,-627.64,0.00052054,120]
[340711606,1729697433637,-500.0,0.00052054,120]
[340711607,1729697433650,-500.0,0.00052054,120]
[340711608,1729697433660,-500.0,0.00052054,120]
[340711609,1729697433670,-500.0,0.00052054,120]
[340711610,1729697433680,-500.0,0.00052054,120]
[340711611,1729697433691,-500.0,0.00052054,120]
[340711612,1729697433701,-500.0,0.00052054,120]
[340711613,1729697433710,-500.0,0.00052054,120]
[340711614,1729697433719,-500.0,0.00052054,120]
[340711615,1729697433733,-500.0,0.00052054,120]
[340711616,1729697433742,-500.0,0.00052054,120]
[340711617,1729697433752,-1029.72,0.00052054,120]
[340711618,1729697433762,-416.21756631,0.00052054,7]
[340711619,1729697433773,-500.0,0.00052054,60]
[340711620,1729697433783,-500.0,0.00052054,120]
[340711621,1729697433793,-500.0,0.00052054,120]
[340711622,1729697433803,-500.0,0.00052054,7]
[340711623,1729697433812,-500.0,0.00052054,120]
[340711624,1729697433822,-1000.0,0.00052054,120]
[340711625,1729697433832,-500.0,0.00052054,120]
[340711626,1729697433842,-500.0,0.00052054,120]
[340711627,1729697433853,-635.23427496,0.00052054,120]
[340711628,1729697433862,-1079.26,0.00052054,120]
[340711629,1729697434006,-981.64,0.00052054,120]
[340711630,1729697434017,-906.17,0.00052054,120]
[340711631,1729697434027,-1042.1,0.00052054,120]
[340711632,1729697434037,-4427.62047962,0.00052059,15]
[340711633,1729697434049,-2989.8046,0.0005206,120]
[340711634,1729697434058,-1500.0,0.000521,2]
[340711635,1729697434068,-521.52448868,0.00052159,120]
[340711636,1729697434079,-500.0,0.00052159,120]
[340711637,1729697434088,-551.81394025,0.00052159,120]
[340711638,1729697434098,-500.0,0.00052159,120]
[340711639,1729697434108,-500.0,0.00052159,120]
[340711640,1729697434118,-2826.84,0.00052159,120]
[340711641,1729697434129,-500.0,0.00052159,120]
[340711642,1729697434139,-500.0,0.00052159,120]
[340711643,1729697434148,-500.0,0.00052159,120]
[340711644,1729697434159,-500.0,0.00052159,120]
[340711645,1729697434169,-500.0,0.00052159,21]
[340711646,1729697434179,-500.0,0.00052159,120]
[340711647,1729697434189,-500.0,0.00052159,120]
[340711648,1729697434198,-830.38,0.00052159,120]
[340711649,1729697434208,-671.79,0.00052159,120]
[340711650,1729697434218,-500.0,0.00052159,120]
[340711651,1729697434230,-500.0,0.00052159,120]
[340711652,1729697434240,-500.0,0.00052159,120]
[340711653,1729697434249,-614.22987142,0.0005216,120]
[340711654,1729697434259,-500.0,0.0005216,120]
[340711655,1729697434268,-500.0,0.0005216,120]
[340711656,1729697434278,-500.0,0.0005216,120]
[340711657,1729697434287,-500.0,0.0005216,120]
[340711658,1729697434296,-500.0,0.0005216,120]
[340711659,1729697434306,-500.0,0.0005216,120]
[340711660,1729697434315,-1091.56,0.0005216,30]
[340711661,1729697434325,-1086.86,0.0005216,120]
[340711662,1729697434334,-307.65019176,0.00052161,120]
[340711663,1729697434344,-500.0,0.00052161,120]
[340711664,1729697434353,-821.85,0.00052161,120]
[340711665,1729697434363,-554.3587,0.00052298,120]
[340711666,1729697434372,-500.0,0.00052328,120]
[340711667,1729697434381,-500.0,0.00052328,120]
[340711668,1729697434391,-500.0,0.00052328,120]
[340711669,1729697434400,-500.0,0.00052328,120]
[340711670,1729697434410,-500.0,0.00052328,120]
[340711671,1729697434420,-418.17587578,0.00052328,120]
[340711672,1729697434429,-500.0,0.00052328,120]
[340711673,1729697434439,-500.0,0.00052328,120]
[340711674,1729697434448,-773.6,0.00052328,120]
[340711675,1729697434457,-317.96390975,0.00052328,120]
[340711676,1729697434467,-500.0,0.00052328,120]
[340711677,1729697434479,-703.31,0.00052328,120]
[340711678,1729697434489,-500.0,0.00052328,120]
[340711679,1729697434499,-500.0,0.00052328,120]
[340711680,1729697434510,-500.0,0.00052328,120]
[340711681,1729697434520,-500.0,0.00052328,120]
[340711682,1729697434531,-627.64,0.00052328,120]
[340711683,1729697434540,-500.0,0.00052328,120]
[340711684,1729697434550,-500.0,0.00052328,120]
[340711685,1729697434560,-500.0,0.00052328,120]
[340711686,1729697434569,-500.0,0.00052328,120]
[340711687,1729697434579,-500.0,0.00052328,120]
[340711688,1729697434589,-500.0,0.00052328,120]
[340711689,1729697434598,-500.0,0.00052328,120]
[340711690,1729697434608,-500.0,0.00052328,120]
[340711691,1729697434618,-233.71994169,0.00052328,120]
[340711695,1729697438160,-500.0,0.00052159,120]
[340711696,1729697438171,-110.56547855,0.00052328,120]
[340711697,1729697438183,-155.71457976,0.00052328,120]
[340711698,1729697438192,-500.0,0.00052328,120]
[340711699,1729697438204,-39.4723668,0.00052328,120]
[340711700,1729697438215,-457.50940902,0.00052328,120]
[340711788,1729697439943,-3.01822418,0.00052328,120]
[340711790,1729697439953,-523.81177582,0.00052328,120]
[340711816,1729697440207,-505.90822418,0.00052328,120]
[340711818,1729697440217,-500.0,0.00052328,60]
[340711820,1729697440227,-469.02310809,0.00052328,120]
[340711822,1729697440240,-374.07707639,0.00052328,120]
[340711825,1729697440250,-177.47086034,0.00052328,7]
[340711840,1729697442994,-261.4769987,0.00052054,120]
[340711841,1729697443007,-343.92303746,0.00052054,120]
[340711842,1729697443018,-322.52913966,0.00052328,7]
[340711843,1729697443028,-4.21782288,0.00052328,120]
[340711844,1729697443160,-495.78217712,0.00052328,120]
[340711845,1729697443170,-176.76782288,0.00052328,120]
[340711846,1729697443268,-323.23217712,0.00052328,120]
[340711847,1729697443277,-141.27182288,0.00052328,120]
[340711848,1729697443289,-358.72817712,0.00052328,120]
[340711849,1729697443299,-1079.26,0.00052328,120]
[340711850,1729697443308,-981.64,0.00052328,120]
[340711852,1729697443319,-151.33455053,0.00052328,120]
[340711854,1729697443330,-754.83544947,0.00052328,120]
[340711856,1729697443340,-1042.1,0.00052328,120]
[340711858,1729697443349,-9.56258439,0.00052433,120]
[340711859,1729697443361,-206.86741561,0.00052433,120]
[340711860,1729697443372,-87.28252911,0.00052433,120]
[340711861,1729697443383,-412.71747089,0.00052433,120]
[340711862,1729697443393,-587.28252911,0.00052433,120]
[340711874,1729697445936,-562.297,0.00052433,120]
[340711875,1729697445948,-335.5,0.00052433,120]
[340711877,1729697445980,-954.46649371,0.00052433,120]
[340711878,1729697446030,-387.29397718,0.00052433,120]
[340711879,1729697446040,-500.0,0.00052433,120]
[340711880,1729697446050,-39.49470856,0.00052433,120]
[340711881,1729697446075,-460.50529144,0.00052433,120]
[340711882,1729697446085,-201.32584856,0.00052433,120]
[340711883,1729697446097,-298.67415144,0.00052433,120]
[340711884,1729697446106,-114.45709856,0.00052433,120]
[340711888,1729697446909,-385.54290144,0.00052433,120]
[340711889,1729697446919,-114.45709856,0.00052433,21]
[340711890,1729697446931,-385.54290144,0.00052433,21]
[340711891,1729697446940,-500.0,0.00052433,120]
[340711892,1729697446950,-500.0,0.00052433,120]
[340711893,1729697446959,-500.0,0.00052433,120]
[340711894,1729697446968,-500.0,0.00052433,120]
[340711895,1729697446977,-500.0,0.00052433,120]
[340711896,1729697446990,-207.71122006,0.00052433,120]
[340711897,1729697447006,-292.28877994,0.00052433,120]
[340711898,1729697447015,-23.14069206,0.00052433,120]
[340711899,1729697570131,250.0,0.0001,2]
[340711900,1729698054311,-165.13,0.00015342,2]
[340711929,1729698632158,-150.0,0.00034548,10]
[340711930,1729698632169,-180.244915,0.000457,64]
[340711931,1729698632273,-295.586192,0.000457,64]
[340711932,1729698632282,-250.0,0.00046,120]
[340711933,1729698632292,-20.95388179,0.00048,120]
[340711934,1729698632303,-179.04611821,0.00048,120]
[340711935,1729698632312,-415.95214856,0.000488,76]
[340711936,1729698632347,-86.74536344,0.000488,76]
[340711937,1729698632357,-249.18403648,0.00049602,2]
[340711938,1729698632369,-30.72596352,0.00049602,2]
[340711939,1729698632378,-305.2,0.000499,119]
[340711940,1729698632388,-12.96413852,0.000499,119]
[340711941,1729698632399,-995.47586148,0.000499,119]
[340711942,1729698632408,-3004.52413852,0.000499,2]
[340711943,1729698632420,-701.9529,0.000499,2]
[340711944,1729698632431,-396.08201598,0.000499,2]
[340711945,1729698632440,-200.0,0.0005,120]
[340711946,1729698632450,-4017.45,0.0005,120]
[340711947,1729698632459,-199.51,0.00050437,2]
[340711948,1729698632468,-190453.54625663,0.0005088,2]
[340711949,1729698632477,-151.0,0.000509,14]
[340711950,1729698632486,-500.0,0.00051,120]
[340711951,1729698632495,-3570.57,0.00051105,2]
[340711952,1729698632505,-250.0,0.00051105,120]
[340711953,1729698632514,-305.2,0.00051205,120]
[340711954,1729698632524,-647.571,0.00051263,92]
[340711955,1729698632533,-50000.0,0.0005128,120]
[340711956,1729698632542,-3360.0,0.0005131,120]
[340711957,1729698632551,-1911.0,0.0005131,120]
[340711958,1729698632560,-810.0,0.0005131,2]
[340711959,1729698632569,-220.173,0.0005131,120]
[340711960,1729698632579,-250.0,0.00051361,120]
[340711961,1729698632588,-250.0,0.00051362,120]
[340711962,1729698632597,-480.0,0.00051394,120]
[340711964,1729698632606,-1008.44,0.0005144,120]
[340711966,1729698632616,-606.79,0.00051493,120]
[340711968,1729698632625,-648.66,0.00051497,120]
[340711970,1729698632634,-155.2,0.00051521,120]
[340711972,1729698632643,-440.66,0.00051532,120]
[340711974,1729698632652,-279.91,0.00051866,2]
[340711976,1729698632662,-606.79,0.00051921,120]
[340711978,1729698632675,-7490.31636097,0.0005198,120]
[340711981,1729698632694,-1000.0,0.000457,64]
[340711983,1729698632703,-63.29357496,0.0005198,120]
[340711987,1729698632715,-3960.26056784,0.0005198,120]
[340711990,1729698632725,-334.50747262,0.0005198,120]
[340711993,1729698632736,-3959.84231907,0.0005198,120]
[340711997,1729698632745,-520.0,0.00051985,120]
[340712000,1729698632754,-179.16,0.00051985,120]
[340712002,1729698632763,-2008.3961721,0.00052,120]
[340712004,1729698632773,-200.0,0.00052,120]
[340712005,1729698632782,-609.46469437,0.00052054,120]
[340712007,1729698632792,-500.0,0.00052054,120]
[340712010,1729698632805,-150.0,0.00052054,120]
[340712012,1729698632814,-500.0,0.00052054,120]
[340712014,1729698632823,-150.0,0.00052054,120]
[340712016,1729698632832,-500.0,0.00052054,120]
[340712018,1729698632841,-648.66,0.000521,120]
[340712020,1729698632850,-648.66,0.000521,120]
[340712022,1729698632859,-481.18,0.000521,120]
[340712024,1729698632868,-937.0,0.0005225,30]
[340712026,1729698632877,-500.0,0.00052328,120]
[340712028,1729698632887,-202.11168751,0.00052433,120]
[340712030,1729698632895,-1091.56,0.00052434,30]
[340712031,1729698632904,-648.66,0.000525,120]
[340712033,1729698632913,-602.220651,0.0005251,120]
[340712035,1729698632928,-613.74029808,0.00052601,120]
[340712037,1729698632937,-500.0,0.00052602,120]
[340712053,1729698633098,-554.3151,0.00052676,2]
[340712054,1729698633116,-1327.9818,0.00052676,2]
[340712055,1729698633126,-1091.56,0.00052708,30]
[340712056,1729698633136,-154.44145012,0.00052775,28]
[340712057,1729698633147,-500.0,0.00052876,120]
[340712058,1729698633156,-2202.5649855,0.00052972,11]
[340712059,1729698633168,-1999.755282,0.0005298,120]
[340712060,1729698633182,-1091.56,0.00052982,30]
[340712061,1729698633192,-2110.0,0.00053,2]
[340712062,1729698633202,-151.0,0.00053014,120]
[340712063,1729698633212,-2202.5649855,0.00053039,11]
[340712064,1729698633221,-7303.99065703,0.00053049,15]
[340712065,1729698633233,-2202.5649855,0.00053139,11]
[340712066,1729698633243,-500.0,0.0005315,120]
[340712067,1729698633254,-500.0,0.00053222,60]
[340712068,1729698633264,-1091.56,0.00053256,30]
[340712069,1729698633274,-2202.5649855,0.00053314,12]
[340712070,1729698633284,-2646.2095,0.00053324,2]
[340712072,1729698633293,-2202.5649855,0.00053326,12]
[340712074,1729698633303,-5996.0,0.00053337,3]
[340712076,1729698633312,-500.0,0.00053424,120]
[340712078,1729698633322,-2202.5649855,0.0005349,12]
[340712080,1729698633331,-2110.0,0.000535,2]
[340712081,1729698633341,-1091.56,0.0005353,30]
[340712082,1729698633350,-167.31,0.00053544,2]
[340712083,1729698633360,-2202.5649855,0.00053687,12]
[340712084,1729698633370,-500.0,0.00053698,120]
[340712085,1729698633379,-1500.0,0.000537,2]
[340712086,1729698633389,-1091.56,0.00053804,30]
[340712087,1729698633399,-2202.5649855,0.00053962,12]
[340712088,1729698633408,-500.0,0.00053972,120]
[340712089,1729698633420,-1187.30267562,0.00054,120]
[340712090,1729698633430,-200.0,0.00054,120]
[340712091,1729698633439,-2110.0,0.00054,2]
[340712092,1729698633449,-1091.56,0.00054078,30]
[340712093,1729698633459,-279.91,0.0005413,2]
[340712094,1729698633468,-2202.5649855,0.00054188,12]
[340712095,1729698633478,-2000.0,0.00054198,120]
[340712096,1729698633488,-500.0,0.00054246,120]
[340712097,1729698633498,-2202.5649855,0.000543,12]
[340712098,1729698633508,-3358.0,0.0005431,120]
[340712099,1729698633517,-662.059,0.0005431,120]
[340712100,1729698633526,-1091.56,0.00054352,30]
[340712101,1729698633536,-2202.5649855,0.0005449,12]
[340712102,1729698633546,-521.0600752,0.00054495,2]
[340712103,1729698633555,-2202.5649855,0.00054499,12]
[340712104,1729698633566,-2110.0,0.000545,2]
[340712105,1729698633575,-2202.5649855,0.00054505,12]
[340712106,1729698633584,-501.5956953,0.00054505,26]
[340712107,1729698633594,-1331.0,0.00054508,7]
[340712108,1729698633603,-334.0,0.00054509,30]
[340712109,1729698633613,-8810.259942,0.00054515,12]
[340712110,1729698633623,-500.0,0.0005452,120]
[340712111,1729698633633,-22222.0,0.00054525,120]
[340712112,1729698633644,-2202.5649855,0.00054595,12]
[340712113,1729698633656,-1091.56,0.00054626,30]
[340712114,1729698633667,-4405.129971,0.00054677,12]
[340712115,1729698633677,-1000.0,0.00054687,2]
[340712116,1729698633686,-1000.0,0.00054687,2]
[340712117,1729698633696,-1000.0,0.00054687,2]
[340712118,1729698633706,-1000.0,0.00054687,2]
[340712119,1729698633715,-1000.0,0.00054687,2]
[340712120,1729698633725,-1000.0,0.00054687,2]
[340712121,1729698633734,-300.8041,0.00054687,2]
[340712122,1729698633743,-500.0,0.00054743,60]
[340712123,1729698633753,-150.0,0.00054753,7]
[340712124,1729698633763,-150.0,0.00054761,7]
[340712125,1729698633772,-150.0,0.00054766,7]
[340712126,1729698633783,-6607.6949565,0.00054774,12]
[340712127,1729698633792,-2202.5649855,0.00054783,12]
[340712128,1729698633803,-22025.649855,0.00054784,12]
[340712129,1729698633812,-150.0,0.00054789,7]
[340712130,1729698633821,-150.0,0.00054794,120]
[340712131,1729698633831,-500.0,0.00054794,120]
[340712132,1729698633840,-150.0,0.00054794,120]
[340712133,1729698633850,-500.0,0.00054794,120]
[340712134,1729698633859,-5800.0,0.00054794,14]
[340712135,1729698633869,-500.0,0.00054794,120]
[340712136,1729698633878,-500.0,0.00054794,120]
[340712137,1729698633887,-590.58390525,0.00054794,120]
[340712138,1729698633897,-500.0,0.00054794,120]
[340712139,1729698633908,-629.38,0.00054794,120]
[340712140,1729698633920,-251.24301098,0.00054794,120]
[340712141,1729698633929,-500.0,0.00054794,120]
[340712142,1729698633939,-996.29,0.00054794,120]
[340712143,1729698633948,-865.12,0.00054794,120]
[340712144,1729698633958,-500.0,0.00054794,120]
[340712145,1729698633968,-500.0,0.00054794,120]
[340712146,1729698633978,-500.0,0.00054794,120]
[340712147,1729698633987,-888.0,0.00054794,120]
[340712148,1729698633997,-500.0,0.00054794,120]
[340712149,1729698634007,-500.0,0.00054794,120]
[340712150,1729698634016,-645.71,0.00054794,120]
[340712151,1729698634026,-500.0,0.00054794,60]
[340712152,1729698634036,-500.0,0.00054794,120]
[340712153,1729698634045,-500.0,0.00054794,120]
[340712154,1729698634055,-500.0,0.00054794,7]
[340712155,1729698634065,-955.26,0.00054794,120]
[340712156,1729698634075,-500.0,0.00054794,120]
[340712157,1729698634084,-500.0,0.00054794,120]
[340712158,1729698634093,-500.0,0.00054794,120]
[340712159,1729698634103,-500.0,0.00054794,120]
[340712160,1729698634112,-500.0,0.00054794,120]
[340712161,1729698634121,-500.0,0.00054794,120]
[340712162,1729698634131,-500.0,0.00054794,120]
[340712163,1729698634140,-281.7674349,0.00054794,120]
[340712164,1729698634150,-500.0,0.00054794,120]
[340712165,1729698634159,-500.0,0.00054794,120]
[340712166,1729698634171,-709.13,0.00054794,120]
[340712167,1729698634184,-828.02,0.00054794,120]
[340712168,1729698634194,-500.0,0.00054794,120]
[340712169,1729698634204,-500.0,0.00054794,120]
[340712170,1729698634213,-500.0,0.00054794,120]
[340712171,1729698634224,-500.0,0.00054794,120]
[340712172,1729698634234,-500.0,0.00054794,120]
[340712173,1729698634243,-2591.27,0.00054794,120]
[340712174,1729698634252,-575.34,0.00054794,120]
[340712175,1729698634262,-500.0,0.00054794,120]
[340712176,1729698634272,-500.0,0.00054794,120]
[340712177,1729698634282,-479.33007063,0.00054794,120]
[340712178,1729698634291,-500.0,0.00054794,120]
[340712179,1729698634301,-500.0,0.00054794,120]
[340712180,1729698634310,-363.0420062,0.00054794,120]
[340712181,1729698634320,-500.0,0.00054794,120]
[340712182,1729698634329,-500.0,0.00054794,120]
[340712183,1729698634338,-500.0,0.00054794,120]
[340712184,1729698634348,-500.0,0.00054794,120]
[340712185,1729698634357,-1048.1,0.00054794,120]
[340712186,1729698634366,-500.0,0.00054794,120]
[340712187,1729698634375,-500.0,0.00054794,120]